Workbook

Sheet Libraries
B1: Type | C1: MaSurCa_prefix | D1: insert size | E1: +/- | F1: SRA_name | G1: colony | H1: sampling location | I1: tissue | J1: sequencer | K1: technology | L1: date | M1: read_length | N1: reads_1(or2) | O1: total_bases | P1: coverage
B2: PE | C2: p4 | D2: 190 | E2: 40 | F2: Crub130114_kaust_PE1_1/2 | G2: CR130114 | H2: Banuyls_sur_mer | I2: colony-wide | J2: KAUST | K2: HiSeq | L2: Apr2015 | M2: 101 | N2: 9.51E+07 | O2: =N2*M2*2 -> 1.92E+10 | P2: =O2/$S$11 -> 29.3
B3: PE | C3: p1 | D3: 400 | E3: 100 | F3: Crub130114_EMBL_PE2_1/2 | G3: CR130114 | H3: Banuyls_sur_mer | I3: colony-wide | J3: EMBL | K3: HiSeq | L3: July2013 | M3: 101 | N3: 2.75E+07 | O3: 5.55E+09 | P3: =O3/$S$11 -> 8.5
B4: PE | C4: p2 | D4: 280 | E4: 50 | F4: Crub130114_EMBL_PE1_1/2 | G4: CR130114 | H4: Banuyls_sur_mer | I4: colony-wide | J4: EMBL | K4: HiSeq | L4: Fev2013 | M4: 104 | N4: 1.42E+08 | O4: 2.95E+10 | P4: 45.0
B5: PE | C5: p3 | D5: 280 | E5: 50 | F5: Crub130114_EMBL_PE3_1/2 | G5: CR130114 | H5: Banuyls_sur_mer | I5: colony-wide | J5: EMBL | K5: HiSeq | L5: May2014 | M5: 101 | N5: 1.48E+08 | O5: 2.99E+10 | P5: 45.7
B6: PE | C6: m1 | D6: 380 | E6: 90 | F6: Crub130114_EMBL_miseq1_1/2 | G6: CR130114 | H6: Banuyls_sur_mer | I6: colony-wide | J6: EMBL | K6: miSeq | L6: Apr2013 | M6: 251 | N6: 5.80E+06 | O6: 2.91E+09 | P6: 4.4
B7: PE | C7: m2 | D7: 380 | E7: 90 | F7: Crub130114_EMBL_miseq2_1/2 | G7: CR130114 | H7: Banuyls_sur_mer | I7: colony-wide | J7: EMBL | K7: miSeq | L7: May2013 | M7: 251 | N7: 6.63E+06 | O7: 3.33E+09 | P7: 5.1
B8: PE | C8: m3 | D8: 400 | E8: 100 | F8: Crub130114_EMBL_miseq3_1/2 | G8: CR130114 | H8: Banuyls_sur_mer | I8: colony-wide | J8: EMBL | K8: miSeq | L8: July2013 | M8: 301 | N8: 4.68E+06 | O8: 2.82E+09 | P8: 4.3
B9: JUMP | C9: j5 | D9: 4400 | E9: 650 | F9: Crub130114_EMBL_MP3_1/2 | G9: CR130114 | H9: Banuyls_sur_mer | I9: colony-wide | J9: EMBL | K9: MP_nextera | L9: Aug2014 | M9: 101 | N9: 2.19E+07 | O9: 4.43E+09 | P9: 6.8
B10: JUMP | C10: j4 | D10: 3600 | E10: 600 | F10: Crub130114_kaustMPr4_1/2 | G10: CR130114 | H10: Banuyls_sur_mer | I10: colony-wide | J10: KAUST | K10: MP_nextera | L10: Apr2015 | M10: 101 | N10: 4.95E+07 | O10: 1.00E+10 | P10: 15.3 | R10: total base | S10: =SUM(O2:O14) -> 1.52E+11
B11: JUMP | C11: j3 | D11: 6000 | E11: 900 | F11: Crub130114_kaustMPr3_1/2 | G11: CR130114 | H11: Banuyls_sur_mer | I11: colony-wide | J11: KAUST | K11: MP_nextera | L11: Apr2015 | M11: 101 | N11: 4.53E+07 | O11: 9.15E+09 | P11: 14.0 | R11: CSM_Crub_V152 | S11: 6.55E+08
B12: JUMP | C12: j2 | D12: 8500 | E12: 1200 | F12: Crub130114_kaustMPr2_1/2 | G12: CR130114 | H12: Banuyls_sur_mer | I12: colony-wide | J12: KAUST | K12: MP_nextera | L12: Apr2015 | M12: 101 | N12: 5.23E+07 | O12: 1.06E+10 | P12: 16.1 | R12: coverage | S12: =S10/S11 -> 232
B13: JUMP | C13: j1 | D13: 11000 | E13: 2000 | F13: Crub130114_kaustMPr1_1/2 | G13: CR130114 | H13: Banuyls_sur_mer | I13: colony-wide | J13: KAUST | K13: MP_nextera | L13: Apr2015 | M13: 101 | N13: 3.85E+07 | O13: 7.77E+09 | P13: 11.9
B14: PacBio | F14: Crub130114_Kaust_PacBio_min1500 | G14: CR130114 | H14: Banuyls_sur_mer | I14: colony-wide | J14: KAUST | K14: PacBioRS II/P6_C4 | L14: June2016 | M14: 1500-70000 | N14: 1.83E+06 | O14: 1.68E+10 | P14: 25.6
O15: =SUM(O2:O14) -> 1.52E+11 | P15: =SUM(P2:P14) -> 231.9

Sheet metrics
B1: MasurCa_V151 (Illumina only) | E1: Canu16 (PacBio) | H1: 1_Masurca_hybrid_V152 (illumina+PacBio) | K1: 2_V152-LRNA_scaffolder | N1: 3_V152-Rascaf | Q1: 4_V152-Sspace | T1: 5_Metassembler_V151-152 | W1: 6_Metassembler_Canu16-V151-152 | Z1: 7_V152s-Pillon | AC1: 8_V152s-GapCloser | AF1: 9_Final-Pillon = Crub Genome(V152)
A2: Scaffold distribution
A4: number contigs (>=500) | B4: 185364 | E4: 13329 | H4: 9326 | K4: 8921 | N4: 7912 | Q4: 5591 | T4: 4127 | W4: 2910 | Z4: 2910 | AC4: 2910 | AF4: 2910
A5: number contigs (>=1000) | B5: 61815 | E5: 13329 | H5: 9318 | K5: 8913 | N5: 7901 | Q5: 5584 | T5: 4122 | W5: 2910 | Z5: 2910 | AC5: 2910 | AF5: 2910
A6: number contigs (>=5000) | B6: 41733 | E6: 12994 | H6: 7366 | K6: 6981 | N6: 6043 | Q6: 4353 | T6: 3863 | W6: 2896 | Z6: 2896 | AC6: 2896 | AF6: 2896
A7: number contigs (>=10000) | B7: 33133 | E7: 11968 | H7: 6394 | K7: 6031 | N7: 5109 | Q7: 3854 | T7: 3603 | W7: 2858 | Z7: 2858 | AC7: 2858 | AF7: 2858
A8: number contigs (>=50000) | B8: 358 | E8: 1636 | H8: 3608 | K8: 3369 | N8: 2724 | Q8: 2413 | T8: 2408 | W8: 2282 | Z8: 2284 | AC8: 2284 | AF8: 2284
A9: number contigs (>=100000) | B9: 25 | E9: 283 | H9: 2217 | K9: 2142 | N9: 1789 | Q9: 1711 | T9: 1709 | W9: 1695 | Z9: 1694 | AC9: 1696 | AF9: 1695
A10: number contigs (>=500000) | B10: 0 | E10: 1 | H10: 117 | K10: 139 | N10: 268 | Q10: 342 | T10: 342 | W10: 344 | Z10: 345 | AC10: 346 | AF10: 345
A11: number contigs (>=1000000) | B11: 0 | E11: 0 | H11: 4 | K11: 9 | N11: 46 | Q11: 66 | T11: 66 | W11: 66 | Z11: 66 | AC11: 66 | AF11: 66
A13: ====================
A14: Scaffolds | B14: withGaps | C14: withoutGaps | E14: withGaps | F14: withoutGaps | H14: withGaps | I14: withoutGaps | K14: withGaps | L14: withoutGaps | N14: withGaps | O14: withoutGaps | Q14: withGaps | R14: withoutGaps | T14: withGaps | U14: withoutGaps | W14: withGaps | X14: withoutGaps | Z14: withGaps | AA14: withoutGaps | AC14: withGaps | AD14: withoutGaps | AF14: withGaps | AG14: withoutGaps
A15: ====================
A16: #Seqs | B16: 185364 | E16: 13329 | H16: 9,326 | K16: 8921 | N16: 7912 | Q16: 5591 | T16: 4127 | W16: 2910 | Z16: 2910 | AC16: 2910 | AF16: 2910
A17: Min | B17: 500 | C17: 439 | E17: 1003 | F17: 1003 | H17: 666 | I17: 666 | K17: 666 | L17: 666 | N17: 518 | O17: 518 | Q17: 518 | R17: 518 | T17: 518 | U17: 518 | W17: 1107 | X17: 1107 | Z17: 1102 | AA17: 1102 | AC17: 1102 | AD17: 1102 | AF17: 1102 | AG17: 1102
A18: 1st Qu. | B18: 596 | C18: 596 | E18: 13427 | F18: 13427 | H18: 6,662 | I18: 6,649 | K18: 6288 | L18: 6274 | N18: 5475 | O18: 5468 | Q18: 6364 | R18: 6292 | T18: 21944 | U18: 21408 | W18: 57659 | X18: 56744 | Z18: 57864 | AA18: 56503 | AC18: 57925 | AD18: 56959 | AF18: 57859 | AG18: 56943
A19: Median | B19: 759 | C19: 758 | E19: 20506 | F19: 20506 | H19: 27,201 | I19: 26,687 | K19: 24990 | L19: 24605 | N19: 19996 | O19: 19721 | Q19: 33184 | R19: 31773 | T19: 71129 | U19: 69032 | W19: 130686 | X19: 127637 | Z19: 131975 | AA19: 128069 | AC19: 132121 | AD19: 129940 | AF19: 131758 | AG19: 129916
A20: Mean | B20: 4947 | C20: 2994 | E20: 28054 | F20: 28054 | H20: 73,520 | I20: 72,480 | K20: 76863 | L20: 75770 | N20: 86516 | O20: 85436 | Q20: 122813 | R20: 120903 | T20: 164388 | U20: 161806 | W20: 224995 | X20: 221691 | Z20: 225235 | AA20: 221967 | AC20: 225417 | AD20: 223269 | AF20: 225186 | AG20: 223046
A21: 3rd Qu. | B21: 1437 | C21: 1286 | E21: 33663 | F21: 33663 | H21: 94,648 | I21: 92,685 | K21: 94969 | L21: 92811 | N21: 85947 | O21: 84482 | Q21: 139050 | R21: 136307 | T21: 199384 | U21: 194777 | W21: 288670 | X21: 285264 | Z21: 288773 | AA21: 284960 | AC21: 288780 | AD21: 285914 | AF21: 288395 | AG21: 285198
A22: Max | B22: 266240 | C22: 225106 | E22: 564541 | F22: 564541 | H22: 1,398,118 | I22: 1,397,140 | K22: 1398118 | L22: 1397140 | N22: 2896117 | O22: 2869046 | Q22: 3638373 | R22: 3613253 | T22: 3634678 | U22: 3613985 | W22: 3639898 | X22: 3619588 | Z22: 3638516 | AA22: 3618527 | AC22: 3641674 | AD22: 3627731 | AF22: 3638999 | AG22: 3625056
A23: Total | B23: 917076888 | C23: 555067588 | E23: 373939768 | F23: 373939768 | H23: 685,655,901 | I23: 675,952,301 | K23: 685697746 | L23: 675952301 | N23: 684516179 | O23: 675974794 | Q23: 686652264 | R23: 675974240 | T23: 678433144 | U23: 667777423 | W23: 654737759 | X23: 645123308 | Z23: 655434967 | AA23: 645925668 | AC23: 655963883 | AD23: 649714261 | AF23: 655292287 | AG23: 649066396
A24: n50 | B24: 21384 | C24: 13859 | E24: 35852 | F24: 35852 | H24: 188,714 | I24: 187,018 | K24: 215138 | L24: 212923 | N24: 311590 | O24: 308629 | Q24: 392659 | R24: 391128 | T24: 401311 | U24: 396244 | W24: 421147 | X24: 417327 | Z24: 421858 | AA24: 417795 | AC24: 421861 | AD24: 417688 | AF24: 421555 | AG24: 417651
A25: n90 | B25: 1147 | C25: 753 | E25: 14069 | F25: 14069 | H25: 42,464 | I25: 41,400 | K25: 44964 | L25: 43914 | N25: 50187 | O25: 48989 | Q25: 76746 | R25: 74661 | T25: 83100 | U25: 81649 | W25: 104028 | X25: 103074 | Z25: 104847 | AA25: 103909 | AC25: 104936 | AD25: 104008 | AF25: 104816 | AG25: 104096
A26: n95 | B26: 696 | C26: 607 | E26: 11511 | F26: 11511 | H26: 22,612 | I26: 21,851 | K26: 23162 | L26: 22580 | N26: 24389 | O26: 24024 | Q26: 41088 | R26: 40578 | T26: 49540 | U26: 48713 | W26: 69430 | X26: 68125 | Z26: 69454 | AA26: 68514 | AC26: 69456 | AD26: 68998 | AF26: 69334 | AG26: 68911
A28: ====================
A29: Contigs | B29: withNs | C29: withoutNs | E29: withNs | F29: withoutNs | H29: withNs | I29: withoutNs | K29: withNs | L29: withoutNs | N29: withNs | O29: withoutNs | Q29: withNs | R29: withoutNs | T29: withNs | U29: withoutNs | W29: withNs | X29: withoutNs | Z29: withNs | AA29: withoutNs | AC29: withNs | AD29: withoutNs | AF29: withNs | AG29: withoutNs
A30: ====================
A31: #Seqs | B31: 296721 | E31: 13329 | H31: 14,218 | K31: 14218 | N31: 12617 | Q31: 12140 | T31: 10720 | W31: 9104 | Z31: 8943 | AC31: 6571 | AF31: 6545
A32: Min | B32: 64 | C32: 64 | E32: 1003 | F32: 1003 | H32: 64 | I32: 64 | K32: 64 | L32: 64 | N32: 64 | O32: 64 | Q32: 64 | R32: 64 | T32: 64 | U32: 64 | W32: 64 | X32: 64 | Z32: 50 | AA32: 50 | AC32: 69 | AD32: 69 | AF32: 55 | AG32: 55
A33: 1st Qu. | B33: 614 | C33: 614 | E33: 13427 | F33: 13427 | H33: 5,913 | I33: 5,913 | K33: 5913 | L33: 5913 | N33: 5211 | O33: 5211 | Q33: 5258 | R33: 5258 | T33: 8432 | U33: 8432 | W33: 10898 | X33: 10898 | Z33: 11284 | AA33: 11279 | AC33: 16875 | AD33: 16873 | AF33: 17024 | AG33: 17024
A34: Median | B34: 860 | C34: 860 | E34: 20506 | F34: 20506 | H34: 20,222 | I34: 20,222 | K34: 20222 | L34: 20222 | N34: 18748 | O34: 18748 | Q34: 19739 | R34: 19739 | T34: 26243 | U34: 26243 | W34: 33827 | X34: 33827 | Z34: 34493 | AA34: 34493 | AC34: 49062 | AD34: 49061 | AF34: 49238 | AG34: 49235
A35: Mean | B35: 1870 | C35: 1867 | E35: 28054 | F35: 28054 | H35: 47,542 | I35: 47,538 | K35: 47542 | L35: 47538 | N35: 53576 | O35: 53574 | Q35: 55681 | R35: 55679 | T35: 62292 | U35: 62290 | W35: 70861 | X35: 70858 | Z35: 72226 | AA35: 72205 | AC35: 98876 | AD35: 98873 | AF35: 99169 | AG35: 99167
A36: 3rd Qu. | B36: 1756 | C36: 1754 | E36: 33663 | F36: 33663 | H36: 57,060 | I36: 57,060 | K36: 57060 | L36: 57060 | N36: 58824 | O36: 58812 | Q36: 61509 | R36: 61493 | T36: 71423 | U36: 71423 | W36: 86326 | X36: 86326 | Z36: 87957 | AA36: 87917 | AC36: 123719 | AD36: 123716 | AF36: 124251 | AG36: 124251
A37: Max | B37: 138436 | C37: 138436 | E37: 564541 | F37: 564541 | H37: 1,054,964 | I37: 1,054,904 | K37: 1054964 | L37: 1054904 | N37: 1089105 | O37: 1089054 | Q37: 1089105 | R37: 1089054 | T37: 1089105 | U37: 1089054 | W37: 1089105 | X37: 1089054 | Z37: 1092046 | AA37: 1091705 | AC37: 1467381 | AD37: 1467350 | AF37: 1465330 | AG37: 1465299
A38: Total | B38: 555067588 | C38: 554025716 | E38: 373939768 | F38: 373939768 | H38: 675,952,301 | I38: 675,901,695 | K38: 675952301 | L38: 675901695 | N38: 675974794 | O38: 675948019 | Q38: 675974240 | R38: 675946644 | T38: 667777423 | U38: 667749003 | W38: 645123308 | X38: 645096017 | Z38: 645925668 | AA38: 645729366 | AC38: 649714261 | AD38: 649695500 | AF38: 649066396 | AG38: 649048687
A39: n50 | B39: 3603 | C39: 3590 | E39: 35852 | F39: 35852 | H39: 114,393 | I39: 114,393 | K39: 114393 | L39: 114393 | N39: 150922 | O39: 150922 | Q39: 154294 | R39: 154277 | T39: 154140 | U39: 154135 | W39: 159155 | X39: 159138 | Z39: 161409 | AA39: 161332 | AC39: 216293 | AD39: 216293 | AF39: 216279 | AG39: 216277
A40: n90 | B40: 680 | C40: 680 | E40: 14069 | F40: 14069 | H40: 24,799 | I40: 24,799 | K40: 24799 | L40: 24799 | N40: 27829 | O40: 27829 | Q40: 29284 | R40: 29284 | T40: 31713 | U40: 31713 | W40: 36610 | X40: 36610 | Z40: 36999 | AA40: 37001 | AC40: 50022 | AD40: 50020 | AF40: 50075 | AG40: 50073
A41: n95 | B41: 575 | C41: 574 | E41: 11511 | F41: 11511 | H41: 14,928 | I41: 14,928 | K41: 14928 | L41: 14928 | N41: 15956 | O41: 15956 | Q41: 16914 | R41: 16912 | T41: 19059 | U41: 19058 | W41: 23047 | X41: 23047 | Z41: 23468 | AA41: 23457 | AC41: 31904 | AD41: 31904 | AF41: 31967 | AG41: 31967
A43: ====================
A44: Gaps
A45: ====================
A46: #Seqs | B46: 111357 | H46: 4,892 | K46: 5297 | N46: 4705 | Q46: 6549 | T46: 6593 | W46: 6194 | Z46: 6033 | AC46: 3661 | AF46: 3635
A47: Min | B47: 25 | H47: 25 | K47: 25 | N47: 26 | Q47: 25 | T47: 25 | W47: 25 | Z47: 25 | AC47: 25 | AF47: 25
A48: 1st Qu. | B48: 1150 | H48: 535 | K48: 381 | N48: 367 | Q48: 407 | T48: 399 | W48: 333 | Z48: 356 | AC48: 449 | AF48: 454
A49: Median | B49: 2752 | H49: 1,334 | K49: 1178 | N49: 1150 | Q49: 1071 | T49: 1060 | W49: 987 | Z49: 1017 | AC49: 1128 | AF49: 1135
A50: Mean | B50: 3250 | H50: 1,983 | K50: 1839 | N50: 1815 | Q50: 1630 | T50: 1616 | W50: 1552 | Z50: 1576 | AC50: 1707 | AF50: 1712
A51: 3rd Qu. | B51: 4981 | H51: 2,847 | K51: 2671 | N51: 2626 | Q51: 2241 | T51: 2219 | W51: 2143 | Z51: 2172 | AC51: 2308 | AF51: 2315
A52: Max | B52: 9999 | H52: 9,914 | K52: 9914 | N52: 9914 | Q52: 9914 | T52: 9914 | W52: 9914 | Z52: 9914 | AC52: 9530 | AF52: 9530
A53: Total | B53: 362009300 | C53: =(B53+B59)/B23 -> 39.59% | E53: 0 | F53: na | H53: 9,703,600 | I53: =(H53+H59)/H23 -> 1.42% | K53: 9745445 | L53: =(K53+K59)/K23 -> 1.43% | N53: 8541385 | O53: =(N53+N59)/N23 -> 1.25% | Q53: 10678024 | R53: =(Q53+Q59)/Q23 -> 1.56% | T53: 10655721 | U53: =(T53+T59)/T23 -> 1.57% | W53: 9614451 | X53: =(W53+W59)/W23 -> 1.47% | Z53: 9509299 | AA53: =(Z53+Z59)/Z23 -> 1.48% | AC53: 6249622 | AD53: =(AC53+AC59)/AC23 -> 0.96% | AF53: 6225891 | AG53: =(AF53+AF59)/AF23 -> 0.95%
A54: n50 | B54: 5054 | H54: 3,504 | K54: 3499 | N54: 3490 | Q54: 2886 | T54: 2864 | W54: 2851 | Z54: 2856 | AC54: 2953 | AF54: 2967
A55: n90 | B55: 1862 | H55: 1,063 | K55: 1038 | N55: 1020 | Q55: 886 | T55: 881 | W55: 867 | Z55: 870 | AC55: 909 | AF55: 910
A56: n95 | B56: 1260 | H56: 697 | K56: 660 | N56: 650 | Q56: 590 | T56: 585 | W56: 575 | Z56: 580 | AC56: 607 | AF56: 610
A58: ====================
A59: Non-gapped Ns Count: | B59: 1041872 | E59: 0 | H59: 50606 | K59: 50606 | N59: 26775 | Q59: 27596 | T59: 28420 | W59: 27291 | Z59: 196302 | AC59: 18761 | AF59: 17709
A61: ====================

Sheet graphs
C1: assembling | F1: scaffolding | I1: metassembling | K1: polishing | U1: assembling | X1: scaffolding | AA1: metassembling | AC1: polishing
A2: Scaffold distribution | C2: V151 | D2: Canu16 | E2: 1_v152 | F2: 2 | G2: 3 | H2: 4 | I2: 5 | J2: 6 | K2: 7 | L2: 8 | M2: 9 | U2: V151 | V2: Canu16 | W2: 1_v152 | X2: 2 | Y2: 3 | Z2: 4 | AA2: 5 | AB2: 6 | AC2: 7 | AD2: 8 | AE2: 9
B3: >=500 | C3: 185364 | D3: 13329 | E3: 9326 | F3: 8921 | G3: 7912 | H3: 5591 | I3: 4127 | J3: 2910 | K3: 2910 | L3: 2910 | M3: 2910 | S3: Scaffolds | T3: Scaff_n50 | U3: 21384 | V3: 35852 | W3: 188,714 | X3: 215138 | Y3: 311590 | Z3: 392659 | AA3: 401311 | AB3: 421147 | AC3: 421858 | AD3: 421861 | AE3: 421555
B4: >=1000 | C4: 61815 | D4: 13329 | E4: 9318 | F4: 8913 | G4: 7901 | H4: 5584 | I4: 4122 | J4: 2910 | K4: 2910 | L4: 2910 | M4: 2910 | T4: Scaff_n90 | U4: 1147 | V4: 14069 | W4: 42,464 | X4: 44964 | Y4: 50187 | Z4: 76746 | AA4: 83100 | AB4: 104028 | AC4: 104847 | AD4: 104936 | AE4: 104816
B5: >=5000 | C5: 41733 | D5: 12994 | E5: 7366 | F5: 6981 | G5: 6043 | H5: 4353 | I5: 3863 | J5: 2896 | K5: 2896 | L5: 2896 | M5: 2896
B6: >=10000 | C6: 33133 | D6: 11968 | E6: 6394 | F6: 6031 | G6: 5109 | H6: 3854 | I6: 3603 | J6: 2858 | K6: 2858 | L6: 2858 | M6: 2858 | S6: contigs | T6: Contig_n50 | U6: 3603 | V6: 35852 | W6: 114,393 | X6: 114393 | Y6: 150922 | Z6: 154294 | AA6: 154140 | AB6: 159155 | AC6: 161409 | AD6: 216293 | AE6: 216279
B7: >=50000 | C7: 358 | D7: 1636 | E7: 3608 | F7: 3369 | G7: 2724 | H7: 2413 | I7: 2408 | J7: 2282 | K7: 2284 | L7: 2284 | M7: 2284 | T7: Contig_n90 | U7: 680 | V7: 14069 | W7: 24,799 | X7: 24799 | Y7: 27829 | Z7: 29284 | AA7: 31713 | AB7: 36610 | AC7: 36999 | AD7: 50022 | AE7: 50075
B8: >=100000 | C8: 25 | D8: 283 | E8: 2217 | F8: 2142 | G8: 1789 | H8: 1711 | I8: 1709 | J8: 1695 | K8: 1694 | L8: 1696 | M8: 1695
B9: >=500000 | C9: 0 | D9: 1 | E9: 117 | F9: 139 | G9: 268 | H9: 342 | I9: 342 | J9: 344 | K9: 345 | L9: 346 | M9: 345 | T9: #sequences | V9: 13329 | W9: 9364 | X9: 8921 | Y9: 7912 | Z9: 5591 | AA9: 4127 | AB9: 2910 | AC9: 2910 | AD9: 2910 | AE9: 2910
B10: >=1000000 | C10: 0 | D10: 0 | E10: 4 | F10: 9 | G10: 46 | H10: 66 | I10: 66 | J10: 66 | K10: 66 | L10: 66 | M10: 66
C44: assembly step
C45: V151 | D45: Canu16 | E45: 1_v152 | F45: 2 | G45: 3 | H45: 4 | I45: 5 | J45: 6 | K45: 7 | L45: 8 | M45: 9
A46: 1 | B46: >=1000000 | C46: =C10 -> 0 | D46: 0 | E46: 4 | F46: =F10 -> 9 | G46: 46 | H46: 66 | I46: 66 | J46: 66 | K46: 66 | L46: 66 | M46: 66
A47: 2 | B47: >=500000 | C47: =C9-C10 -> 0 | D47: 1 | E47: 113 | F47: =F9-F10 -> 130 | G47: 222 | H47: 276 | I47: 276 | J47: 278 | K47: 279 | L47: 280 | M47: 279
A48: 3 | B48: >=100000 | C48: =C8-C9 -> 25 | D48: 282 | E48: 2100 | F48: =F8-F9 -> 2003 | G48: 1521 | H48: 1369 | I48: 1367 | J48: 1351 | K48: 1349 | L48: 1350 | M48: 1350
A49: 4 | B49: >=50000 | C49: =C7-C8 -> 333 | D49: 1353 | E49: 1391 | F49: =F7-F8 -> 1227 | G49: 935 | H49: 702 | I49: 699 | J49: 587 | K49: 590 | L49: 588 | M49: 589
A50: 5 | B50: >=10000 | C50: =C6-C7 -> 32775 | D50: 10332 | E50: 2786 | F50: =F6-F7 -> 2662 | G50: 2385 | H50: 1441 | I50: 1195 | J50: 576 | K50: 574 | L50: 574 | M50: 574
A51: 6 | B51: >=5000 | C51: =C5-C6 -> 8600 | D51: 1026 | E51: 972 | F51: =F5-F6 -> 950 | G51: 934 | H51: 499 | I51: 260 | J51: 38 | K51: 38 | L51: 38 | M51: 38
A52: 7 | B52: >=1000 | C52: =C4-C5 -> 20082 | D52: 335 | E52: 1952 | F52: =F4-F5 -> 1932 | G52: 1858 | H52: 1231 | I52: 259 | J52: 14 | K52: 14 | L52: 14 | M52: 14
A53: 8 | B53: >=500 | C53: =C3-C4 -> 123549 | D53: 0 | E53: 8 | F53: =F3-F4 -> 8 | G53: 11 | H53: 7 | I53: 5 | J53: 0 | K53: 0 | L53: 0 | M53: 0
B54: Total | C54: =SUM(C46:C53) -> 185364 | D54: =SUM(D46:D53) -> 13329 | E54: =SUM(E46:E53) -> 9326 | F54: 8921 | G54: 7912 | H54: 5591 | I54: 4127 | J54: 2910 | K54: 2910 | L54: 2910 | M54: 2910
B55: % Ns | C55: 37.60% | D55: 0% | E55: 1.56% | F55: 1.43% | G55: 1.25% | H55: 1.56% | I55: 1.57% | J55: 1.47% | K55: 1.48% | L55: 0.96% | M55: 0.95%
C58: V151 | D58: v152
B59: % Ns | C59: 39.6% | D59: 1.4%
